[Event "Titled Tuesday Blitz February 22 Late 2022"]
[White "Dreev, Aleksey"]
[Black "Barp, Alberto"]
[WhiteFideId "4100107"]
[BlackFideId "872555"]
[WhiteElo "2636"]
[BlackElo "2229"]
[Result "1-0"]
[Round "04"]
[TimeControl "180+1"]
[Date "2022.02.22"]
[WhiteClock "0:00:10"]
[BlackClock "0:00:01"]

1. d4 {[%clk 0:03:00]}  d5 {[%clk 0:02:56]} 2. c4 {[%clk 0:03:01]}  e6 {[%clk 0:02:56]} 3. Nc3 {[%clk 0:03:00]}  Bb4 {[%clk 0:02:56]} 4. Bf4 {[%clk 0:02:53]}  c5 {[%clk 0:02:53]} 5. cxd5 {[%clk 0:02:51]}  exd5 {[%clk 0:02:54]} 6. e3 {[%clk 0:02:51]}  c4 {[%clk 0:02:51]} 7. Bxb8 {[%clk 0:02:44]}  Bxc3+ {[%clk 0:02:49]} 8. bxc3 {[%clk 0:02:44]}  Rxb8 {[%clk 0:02:48]} 9. Qa4+ {[%clk 0:02:29]}  Bd7 {[%clk 0:02:13]} 10. Qxa7 {[%clk 0:02:27]}  Nf6 {[%clk 0:01:57]} 11. Qa3 {[%clk 0:02:21]}  b5 {[%clk 0:01:46]} 12. Nf3 {[%clk 0:02:14]}  Ra8 {[%clk 0:01:39]} 13. Qb2 {[%clk 0:02:06]}  O-O {[%clk 0:01:37]} 14. Be2 {[%clk 0:02:06]}  Ra5 {[%clk 0:01:32]} 15. O-O {[%clk 0:02:02]}  Qe7 {[%clk 0:01:26]} 16. Ne5 {[%clk 0:01:51]}  Rfa8 {[%clk 0:01:24]} 17. Bf3 {[%clk 0:01:45]}  Be8 {[%clk 0:01:19]} 18. h3 {[%clk 0:01:40]}  Qa7 {[%clk 0:01:15]} 19. Ng4 {[%clk 0:01:27]}  Ne4 {[%clk 0:00:32]} 20. Bxe4 {[%clk 0:01:25]}  dxe4 {[%clk 0:00:33]} 21. Qc2 {[%clk 0:01:17]}  Bc6 {[%clk 0:00:30]} 22. Ne5 {[%clk 0:01:15]}  Bd5 {[%clk 0:00:30]} 23. Qb1 {[%clk 0:01:15]}  Qb7 {[%clk 0:00:20]} 24. f3 {[%clk 0:01:07]}  exf3 {[%clk 0:00:20]} 25. gxf3 {[%clk 0:01:07]}  Qc8 {[%clk 0:00:17]} 26. Kh2 {[%clk 0:01:02]}  R8a6 {[%clk 0:00:17]} 27. Rf2 {[%clk 0:00:58]}  Rh6 {[%clk 0:00:16]} 28. Qf1 {[%clk 0:00:58]}  Ra3 {[%clk 0:00:16]} 29. Ng4 {[%clk 0:00:55]}  Re6 {[%clk 0:00:16]} 30. e4 {[%clk 0:00:54]}  Ba8 {[%clk 0:00:16]} 31. Rc1 {[%clk 0:00:52]}  f5 {[%clk 0:00:14]} 32. exf5 {[%clk 0:00:50]}  Rea6 {[%clk 0:00:12]} 33. Rcc2 {[%clk 0:00:44]}  Qxf5 {[%clk 0:00:11]} 34. Rce2 {[%clk 0:00:44]}  Re6 {[%clk 0:00:11]} 35. Qe1 {[%clk 0:00:43]}  Raa6 {[%clk 0:00:09]} 36. Ne5 {[%clk 0:00:40]}  Qf4+ {[%clk 0:00:08]} 37. Kh1 {[%clk 0:00:39]}  Bd5 {[%clk 0:00:08]} 38. Qg1 {[%clk 0:00:36]}  Qf5 {[%clk 0:00:08]} 39. Qg4 {[%clk 0:00:36]}  Qf8 {[%clk 0:00:07]} 40. Rg2 {[%clk 0:00:35]}  h6 {[%clk 0:00:06]} 41. Kh2 {[%clk 0:00:33]}  Ra7 {[%clk 0:00:05]} 42. Ng6 {[%clk 0:00:29]}  Qf6 {[%clk 0:00:04]} 43. Ne5 {[%clk 0:00:29]}  Qf8 {[%clk 0:00:04]} 44. Rg3 {[%clk 0:00:28]}  Qd6 {[%clk 0:00:04]} 45. Reg2 {[%clk 0:00:27]}  Ree7 {[%clk 0:00:02]} 46. Qh4 {[%clk 0:00:27]}  Qe6 {[%clk 0:00:02]} 47. Ng4 {[%clk 0:00:25]}  Kh8 {[%clk 0:00:02]} 48. Ne5 {[%clk 0:00:22]}  Re8 {[%clk 0:00:02]} 49. Qf4 {[%clk 0:00:21]}  Ree7 {[%clk 0:00:01]} 50. Rg6 {[%clk 0:00:21]}  Qg8 {[%clk 0:00:01]} 51. Qh4 {[%clk 0:00:19]}  Re6 {[%clk 0:00:01]} 52. R2g3 {[%clk 0:00:18]}  Rxg6 {[%clk 0:00:01]} 53. Nxg6+ {[%clk 0:00:17]}  Kh7 {[%clk 0:00:01]} 54. Rg2 {[%clk 0:00:17]}  Qf7 {[%clk 0:00:02]} 55. Ne5 {[%clk 0:00:16]}  Qf6 {[%clk 0:00:02]} 56. Qxf6 {[%clk 0:00:13]}  gxf6 {[%clk 0:00:03]} 57. Ng4 {[%clk 0:00:14]}  Rf7 {[%clk 0:00:03]} 58. Rf2 {[%clk 0:00:12]}  h5 {[%clk 0:00:03]} 59. Ne3 {[%clk 0:00:12]}  Bb7 {[%clk 0:00:04]} 60. Kg3 {[%clk 0:00:12]}  Kg6 {[%clk 0:00:04]} 61. Kf4 {[%clk 0:00:13]}  Rd7 {[%clk 0:00:02]} 62. Rg2+ {[%clk 0:00:13]}  Kf7 {[%clk 0:00:03]} 63. Nf5 {[%clk 0:00:13]}  Kf8 {[%clk 0:00:02]} 64. a3 {[%clk 0:00:12]}  Bc6 {[%clk 0:00:02]} 65. Ne3 {[%clk 0:00:12]}  Ra7 {[%clk 0:00:02]} 66. d5 {[%clk 0:00:12]}  Be8 {[%clk 0:00:01]} 67. Ke4 {[%clk 0:00:10]} 1-0


[Site "https://www.chess.com"]

[Event "Titled Tuesday Blitz February 22 Late 2022"]
[White "Elissalt Cardenas, Hector"]
[Black "Guz, Ari"]
[WhiteFideId "3500632"]
[BlackFideId "2825759"]
[WhiteElo "2159"]
[BlackElo "1913"]
[Result "0-1"]
[Round "04"]
[TimeControl "180+1"]
[Date "2022.02.23"]
[WhiteClock "0:00:16"]
[BlackClock "0:02:08"]

1. d4 {[%clk 0:03:00]}  e6 {[%clk 0:02:55]} 2. c4 {[%clk 0:02:56]}  b6 {[%clk 0:02:55]} 3. e4 {[%clk 0:02:40]}  Bb7 {[%clk 0:02:52]} 4. Bd3 {[%clk 0:02:37]}  e5 {[%clk 0:02:46]} 5. d5 {[%clk 0:02:26]}  a5 {[%clk 0:02:43]} 6. Nf3 {[%clk 0:02:17]}  Bb4+ {[%clk 0:02:37]} 7. Nbd2 {[%clk 0:02:06]}  d6 {[%clk 0:02:36]} 8. a3 {[%clk 0:01:57]}  Bxd2+ {[%clk 0:02:34]} 9. Bxd2 {[%clk 0:01:56]}  a4 {[%clk 0:02:35]} 10. Bc2 {[%clk 0:01:49]}  Qd7 {[%clk 0:02:32]} 11. O-O {[%clk 0:01:39]}  Ne7 {[%clk 0:02:32]} 12. Ne1 {[%clk 0:01:25]}  O-O {[%clk 0:02:29]} 13. Nd3 {[%clk 0:01:06]}  b5 {[%clk 0:02:26]} 14. c5 {[%clk 0:01:05]}  c6 {[%clk 0:02:23]} 15. cxd6 {[%clk 0:01:00]}  Qxd6 {[%clk 0:02:23]} 16. Bb4 {[%clk 0:01:01]}  Qf6 {[%clk 0:02:24]} 17. Nc5 {[%clk 0:00:53]}  Ba6 {[%clk 0:02:24]} 18. d6 {[%clk 0:00:52]}  Ng6 {[%clk 0:02:24]} 19. Qf3 {[%clk 0:00:32]}  Qxf3 {[%clk 0:02:18]} 20. gxf3 {[%clk 0:00:32]}  Bc8 {[%clk 0:02:19]} 21. Rfd1 {[%clk 0:00:29]}  Bd7 {[%clk 0:02:19]} 22. Nxd7 {[%clk 0:00:28]}  Nxd7 {[%clk 0:02:19]} 23. Bd2 {[%clk 0:00:20]}  Rfc8 {[%clk 0:02:13]} 24. Be3 {[%clk 0:00:20]}  Ngf8 {[%clk 0:02:13]} 25. f4 {[%clk 0:00:20]}  exf4 {[%clk 0:02:09]} 26. Bxf4 {[%clk 0:00:20]}  Ne6 {[%clk 0:02:10]} 27. Be3 {[%clk 0:00:20]}  Ne5 {[%clk 0:02:09]} 28. Kg2 {[%clk 0:00:19]}  Nc4 {[%clk 0:02:09]} 29. Bc1 {[%clk 0:00:19]}  Rd8 {[%clk 0:02:09]} 30. b3 {[%clk 0:00:19]}  axb3 {[%clk 0:02:08]} 31. Bxb3 {[%clk 0:00:19]}  Nxd6 {[%clk 0:02:09]} 32. Bxe6 {[%clk 0:00:18]}  fxe6 {[%clk 0:02:09]} 33. f3 {[%clk 0:00:17]}  Nc4 {[%clk 0:02:10]} 34. a4 {[%clk 0:00:16]}  Rxd1 {[%clk 0:02:08]} 0-1


[Site "https://www.chess.com"]

[Event "Titled Tuesday Blitz February 22 Late 2022"]
[White "Erdogdu, Mert"]
[Black "Gupta, Abhijeet"]
[WhiteFideId "6301495"]
[BlackFideId "5010608"]
[WhiteElo "2485"]
[BlackElo "2549"]
[Result "1/2-1/2"]
[Round "04"]
[TimeControl "180+1"]
[Date "2022.02.22"]
[WhiteClock "0:00:09"]
[BlackClock "0:00:11"]

1. e4 {[%clk 0:03:00]}  c5 {[%clk 0:02:59]} 2. Nf3 {[%clk 0:03:01]}  d6 {[%clk 0:02:58]} 3. d4 {[%clk 0:03:01]}  cxd4 {[%clk 0:02:59]} 4. Nxd4 {[%clk 0:03:02]}  Nf6 {[%clk 0:03:00]} 5. Nc3 {[%clk 0:03:03]}  Nc6 {[%clk 0:03:00]} 6. Bg5 {[%clk 0:03:02]}  e6 {[%clk 0:03:01]} 7. Qd2 {[%clk 0:03:03]}  a6 {[%clk 0:03:01]} 8. O-O-O {[%clk 0:03:03]}  Bd7 {[%clk 0:03:02]} 9. f3 {[%clk 0:03:03]}  Be7 {[%clk 0:03:02]} 10. Be3 {[%clk 0:03:04]}  Nxd4 {[%clk 0:03:01]} 11. Bxd4 {[%clk 0:03:04]}  b5 {[%clk 0:03:01]} 12. Kb1 {[%clk 0:03:04]}  b4 {[%clk 0:03:02]} 13. Ne2 {[%clk 0:03:04]}  a5 {[%clk 0:03:02]} 14. g4 {[%clk 0:03:04]}  e5 {[%clk 0:03:02]} 15. Be3 {[%clk 0:03:05]}  Be6 {[%clk 0:03:02]} 16. g5 {[%clk 0:03:04]}  Nd7 {[%clk 0:03:03]} 17. f4 {[%clk 0:02:56]}  O-O {[%clk 0:02:54]} 18. f5 {[%clk 0:02:53]}  Bc4 {[%clk 0:02:52]} 19. Ng3 {[%clk 0:02:47]}  Bxf1 {[%clk 0:01:58]} 20. Rhxf1 {[%clk 0:02:46]}  Kh8 {[%clk 0:01:48]} 21. h4 {[%clk 0:02:43]}  a4 {[%clk 0:01:44]} 22. f6 {[%clk 0:02:30]}  gxf6 {[%clk 0:01:45]} 23. Nf5 {[%clk 0:02:30]}  b3 {[%clk 0:01:42]} 24. cxb3 {[%clk 0:02:29]}  axb3 {[%clk 0:01:41]} 25. a3 {[%clk 0:02:29]}  Rc8 {[%clk 0:01:36]} 26. Nxe7 {[%clk 0:02:13]}  Qxe7 {[%clk 0:01:35]} 27. gxf6 {[%clk 0:02:13]}  Qe6 {[%clk 0:01:29]} 28. Bh6 {[%clk 0:02:11]}  Rg8 {[%clk 0:01:26]} 29. Bg7+ {[%clk 0:02:08]}  Rxg7 {[%clk 0:01:26]} 30. fxg7+ {[%clk 0:02:09]}  Kxg7 {[%clk 0:01:21]} 31. Rg1+ {[%clk 0:02:04]}  Kf8 {[%clk 0:01:18]} 32. Qxd6+ {[%clk 0:02:04]}  Qxd6 {[%clk 0:01:18]} 33. Rxd6 {[%clk 0:02:05]}  Ke7 {[%clk 0:01:19]} 34. Rd3 {[%clk 0:01:57]}  Rc4 {[%clk 0:01:16]} 35. Rxb3 {[%clk 0:01:28]}  Rxe4 {[%clk 0:01:15]} 36. Rd1 {[%clk 0:01:19]}  Nc5 {[%clk 0:01:08]} 37. Rb5 {[%clk 0:01:15]}  Ne6 {[%clk 0:01:08]} 38. h5 {[%clk 0:01:14]}  Nf4 {[%clk 0:01:03]} 39. Rb7+ {[%clk 0:01:10]}  Ke6 {[%clk 0:01:00]} 40. Rc1 {[%clk 0:01:09]}  Nxh5 {[%clk 0:00:57]} 41. Rc6+ {[%clk 0:01:08]}  Kd5 {[%clk 0:00:52]} 42. Rh6 {[%clk 0:01:08]}  Nf4 {[%clk 0:00:46]} 43. Rxf7 {[%clk 0:01:06]}  Re1+ {[%clk 0:00:44]} 44. Ka2 {[%clk 0:01:06]}  Ne2 {[%clk 0:00:44]} 45. Kb3 {[%clk 0:00:50]}  Rc1 {[%clk 0:00:36]} 46. Rd7+ {[%clk 0:00:46]}  Ke4 {[%clk 0:00:35]} 47. Rhxh7 {[%clk 0:00:36]}  Nd4+ {[%clk 0:00:34]} 48. Ka4 {[%clk 0:00:35]}  Rc8 {[%clk 0:00:31]} 49. b4 {[%clk 0:00:29]}  Ra8+ {[%clk 0:00:27]} 50. Ra7 {[%clk 0:00:30]}  Rb8 {[%clk 0:00:28]} 51. Rhb7 {[%clk 0:00:29]}  Rh8 {[%clk 0:00:25]} 52. b5 {[%clk 0:00:28]}  Rh3 {[%clk 0:00:20]} 53. Rc7 {[%clk 0:00:24]}  Rh6 {[%clk 0:00:17]} 54. Ra6 {[%clk 0:00:21]}  Rh1 {[%clk 0:00:14]} 55. b6 {[%clk 0:00:20]}  Rb1 {[%clk 0:00:14]} 56. b7 {[%clk 0:00:17]}  Kd5 {[%clk 0:00:14]} 57. Ra8 {[%clk 0:00:15]}  Ne6 {[%clk 0:00:12]} 58. Rc2 {[%clk 0:00:11]}  Rxb7 {[%clk 0:00:10]} 59. Ra5+ {[%clk 0:00:11]}  Kd4 {[%clk 0:00:10]} 60. Rd2+ {[%clk 0:00:11]}  Kc3 {[%clk 0:00:10]} 61. Rd6 {[%clk 0:00:11]}  Nd4 {[%clk 0:00:09]} 62. Rc5+ {[%clk 0:00:07]}  Kb2 {[%clk 0:00:07]} 63. Rxe5 {[%clk 0:00:06]}  Nc2 {[%clk 0:00:06]} 64. Rd2 {[%clk 0:00:05]}  Ra7+ {[%clk 0:00:06]} 65. Kb5 {[%clk 0:00:05]}  Rxa3 {[%clk 0:00:06]} 66. Ree2 {[%clk 0:00:05]}  Rb3+ {[%clk 0:00:06]} 67. Kc5 {[%clk 0:00:06]}  Rc3+ {[%clk 0:00:06]} 68. Kd5 {[%clk 0:00:06]}  Rc8 {[%clk 0:00:07]} 69. Ke4 {[%clk 0:00:06]}  Kc1 {[%clk 0:00:08]} 70. Kf4 {[%clk 0:00:05]}  Rf8+ {[%clk 0:00:08]} 71. Kg5 {[%clk 0:00:05]}  Rg8+ {[%clk 0:00:08]} 72. Kf6 {[%clk 0:00:05]}  Rf8+ {[%clk 0:00:09]} 73. Kg7 {[%clk 0:00:06]}  Rc8 {[%clk 0:00:10]} 74. Rd7 {[%clk 0:00:06]}  Kb2 {[%clk 0:00:09]} 75. Rh2 {[%clk 0:00:06]}  Kc1 {[%clk 0:00:10]} 76. Rb7 {[%clk 0:00:07]}  Rc3 {[%clk 0:00:10]} 77. Rf7 {[%clk 0:00:07]}  Kb2 {[%clk 0:00:10]} 78. Rff2 {[%clk 0:00:07]}  Rc7+ {[%clk 0:00:10]} 79. Kf6 {[%clk 0:00:08]}  Rc8 {[%clk 0:00:10]} 80. Ke7 {[%clk 0:00:08]}  Rc7+ {[%clk 0:00:10]} 81. Kd6 {[%clk 0:00:08]}  Rc3 {[%clk 0:00:11]} 82. Kd5 {[%clk 0:00:09]}  Rc8 {[%clk 0:00:12]} 83. Rd2 {[%clk 0:00:08]}  Rd8+ {[%clk 0:00:12]} 84. Kc4 {[%clk 0:00:08]}  Rc8+ {[%clk 0:00:12]} 85. Kb5 {[%clk 0:00:09]}  Rb8+ {[%clk 0:00:13]} 86. Kc6 {[%clk 0:00:09]}  Rc8+ {[%clk 0:00:13]} 87. Kb7 {[%clk 0:00:10]}  Rc3 {[%clk 0:00:14]} 88. Rd6 {[%clk 0:00:10]}  Rb3+ {[%clk 0:00:14]} 89. Rb6 {[%clk 0:00:10]}  Rxb6+ {[%clk 0:00:15]} 90. Kxb6 {[%clk 0:00:11]}  Kc3 {[%clk 0:00:15]} 91. Kc5 {[%clk 0:00:11]}  Kd3 {[%clk 0:00:16]} 92. Rh3+ {[%clk 0:00:12]}  Kd2 {[%clk 0:00:17]} 93. Kc4 {[%clk 0:00:11]}  Ne3+ {[%clk 0:00:17]} 94. Kb4 {[%clk 0:00:12]}  Kd3 {[%clk 0:00:16]} 95. Kc5 {[%clk 0:00:11]}  Ke4 {[%clk 0:00:16]} 96. Rh4+ {[%clk 0:00:11]}  Kd3 {[%clk 0:00:15]} 97. Rf4 {[%clk 0:00:10]}  Nc2 {[%clk 0:00:13]} 98. Kd5 {[%clk 0:00:10]}  Ne3+ {[%clk 0:00:14]} 99. Ke5 {[%clk 0:00:10]}  Nc4+ {[%clk 0:00:14]} 100. Kf5 {[%clk 0:00:10]}  Ne3+ {[%clk 0:00:15]} 101. Ke5 {[%clk 0:00:10]}  Nc4+ {[%clk 0:00:15]} 102. Ke6 {[%clk 0:00:10]}  Ne3 {[%clk 0:00:14]} 103. Ra4 {[%clk 0:00:08]}  Nc4 {[%clk 0:00:13]} 104. Ra1 {[%clk 0:00:06]}  Kd4 {[%clk 0:00:13]} 105. Rd1+ {[%clk 0:00:05]}  Ke4 {[%clk 0:00:13]} 106. Rc1 {[%clk 0:00:05]}  Kd4 {[%clk 0:00:13]} 107. Kd7 {[%clk 0:00:05]}  Ne5+ {[%clk 0:00:12]} 108. Ke6 {[%clk 0:00:05]}  Nc4 {[%clk 0:00:13]} 109. Rh1 {[%clk 0:00:05]}  Ne3 {[%clk 0:00:11]} 110. Rh4+ {[%clk 0:00:05]}  Kd3 {[%clk 0:00:12]} 111. Ke5 {[%clk 0:00:04]}  Nc4+ {[%clk 0:00:12]} 112. Kd5 {[%clk 0:00:04]}  Ne3+ {[%clk 0:00:12]} 113. Kc5 {[%clk 0:00:05]}  Kc3 {[%clk 0:00:13]} 114. Rh3 {[%clk 0:00:05]}  Kd3 {[%clk 0:00:13]} 115. Rg3 {[%clk 0:00:06]}  Ke4 {[%clk 0:00:13]} 116. Rg8 {[%clk 0:00:05]}  Kd3 {[%clk 0:00:12]} 117. Rd8+ {[%clk 0:00:05]}  Ke4 {[%clk 0:00:12]} 118. Ra8 {[%clk 0:00:06]}  Kd3 {[%clk 0:00:12]} 119. Ra3+ {[%clk 0:00:06]}  Ke4 {[%clk 0:00:12]} 120. Rb3 {[%clk 0:00:07]}  Nf5 {[%clk 0:00:11]} 121. Kc4 {[%clk 0:00:08]}  Ne3+ {[%clk 0:00:11]} 122. Kc5 {[%clk 0:00:08]}  Nf5 {[%clk 0:00:11]} 123. Rh3 {[%clk 0:00:09]}  Ne3 {[%clk 0:00:11]} 124. Kb4 {[%clk 0:00:08]}  Nd5+ {[%clk 0:00:10]} 125. Kc5 {[%clk 0:00:09]}  Ne3 {[%clk 0:00:11]} 1/2-1/2


[Site "https://www.chess.com"]

[Event "Titled Tuesday Blitz February 22 Late 2022"]
[White "Escudero Donoso, Felipe"]
[Black "Noboa Silva, Kevin"]
[WhiteFideId "3410595"]
[BlackFideId "3618471"]
[WhiteElo "2184"]
[BlackElo "2161"]
[Result "0-1"]
[Round "04"]
[TimeControl "180+1"]
[Date "2022.02.23"]
[WhiteClock "0:00:01"]
[BlackClock "0:00:11"]

1. Nf3 {[%clk 0:03:00]}  c5 {[%clk 0:02:58]} 2. c4 {[%clk 0:03:00]}  Nf6 {[%clk 0:02:55]} 3. Nc3 {[%clk 0:03:00]}  b6 {[%clk 0:02:53]} 4. g3 {[%clk 0:02:58]}  Bb7 {[%clk 0:02:53]} 5. Bg2 {[%clk 0:02:59]}  e6 {[%clk 0:02:53]} 6. O-O {[%clk 0:02:48]}  a6 {[%clk 0:02:45]} 7. b3 {[%clk 0:02:43]}  d6 {[%clk 0:02:43]} 8. d4 {[%clk 0:02:42]}  cxd4 {[%clk 0:02:37]} 9. Qxd4 {[%clk 0:02:43]}  Nbd7 {[%clk 0:02:35]} 10. Bb2 {[%clk 0:02:42]}  Be7 {[%clk 0:02:35]} 11. Rfd1 {[%clk 0:02:41]}  O-O {[%clk 0:02:34]} 12. e4 {[%clk 0:02:26]}  Qc7 {[%clk 0:02:31]} 13. Rac1 {[%clk 0:02:22]}  Rac8 {[%clk 0:02:31]} 14. h3 {[%clk 0:02:13]}  Rfe8 {[%clk 0:02:30]} 15. Ba3 {[%clk 0:01:54]}  Nc5 {[%clk 0:02:29]} 16. e5 {[%clk 0:01:54]}  dxe5 {[%clk 0:02:28]} 17. Qxe5 {[%clk 0:01:54]}  Qxe5 {[%clk 0:02:27]} 18. Nxe5 {[%clk 0:01:54]}  Bxg2 {[%clk 0:02:28]} 19. Kxg2 {[%clk 0:01:55]}  h5 {[%clk 0:02:11]} 20. Rd4 {[%clk 0:01:42]}  Red8 {[%clk 0:01:52]} 21. Rxd8+ {[%clk 0:01:33]}  Bxd8 {[%clk 0:01:45]} 22. Rd1 {[%clk 0:01:33]}  Be7 {[%clk 0:01:44]} 23. Na4 {[%clk 0:01:20]}  Nxa4 {[%clk 0:01:27]} 24. Bxe7 {[%clk 0:01:19]}  Nc3 {[%clk 0:01:26]} 25. Rd2 {[%clk 0:01:01]}  Nfe4 {[%clk 0:01:24]} 26. Rc2 {[%clk 0:01:01]}  Nd1 {[%clk 0:01:07]} 27. Kf3 {[%clk 0:00:32]}  Ndxf2 {[%clk 0:00:56]} 28. Rxf2 {[%clk 0:00:30]}  Nxf2 {[%clk 0:00:57]} 29. Kxf2 {[%clk 0:00:30]}  f6 {[%clk 0:00:54]} 30. Nd3 {[%clk 0:00:26]}  Kf7 {[%clk 0:00:54]} 31. Bb4 {[%clk 0:00:24]}  g5 {[%clk 0:00:52]} 32. Bd2 {[%clk 0:00:24]}  Kg6 {[%clk 0:00:51]} 33. Be3 {[%clk 0:00:24]}  Rb8 {[%clk 0:00:50]} 34. Nb4 {[%clk 0:00:20]}  a5 {[%clk 0:00:49]} 35. Nc6 {[%clk 0:00:21]}  Rb7 {[%clk 0:00:45]} 36. Nd8 {[%clk 0:00:21]}  Re7 {[%clk 0:00:39]} 37. Bxb6 {[%clk 0:00:21]}  Kf5 {[%clk 0:00:37]} 38. c5 {[%clk 0:00:21]}  Rd7 {[%clk 0:00:34]} 39. c6 {[%clk 0:00:16]}  Rd2+ {[%clk 0:00:34]} 40. Ke3 {[%clk 0:00:17]}  Rxa2 {[%clk 0:00:34]} 41. c7 {[%clk 0:00:12]}  Rc2 {[%clk 0:00:34]} 42. Nb7 {[%clk 0:00:12]}  g4 {[%clk 0:00:18]} 43. c8=Q {[%clk 0:00:08]}  Rxc8 {[%clk 0:00:17]} 44. Nd6+ {[%clk 0:00:08]}  Ke5 {[%clk 0:00:17]} 45. Nxc8 {[%clk 0:00:09]}  gxh3 {[%clk 0:00:17]} 46. Kf3 {[%clk 0:00:07]}  Kd5 {[%clk 0:00:16]} 47. Bxa5 {[%clk 0:00:07]}  e5 {[%clk 0:00:17]} 48. b4 {[%clk 0:00:05]}  e4+ {[%clk 0:00:16]} 49. Kf2 {[%clk 0:00:04]}  f5 {[%clk 0:00:17]} 50. b5 {[%clk 0:00:03]}  h4 {[%clk 0:00:17]} 51. gxh4 {[%clk 0:00:03]}  f4 {[%clk 0:00:17]} 52. Ne7+ {[%clk 0:00:04]}  Kc5 {[%clk 0:00:16]} 53. b6 {[%clk 0:00:03]}  e3+ {[%clk 0:00:16]} 54. Kg1 {[%clk 0:00:03]}  Kb5 {[%clk 0:00:15]} 55. b7 {[%clk 0:00:03]}  Kxa5 {[%clk 0:00:15]} 56. b8=Q {[%clk 0:00:02]}  e2 {[%clk 0:00:15]} 57. Kf2 {[%clk 0:00:02]}  h2 {[%clk 0:00:15]} 58. Qe5+ {[%clk 0:00:02]}  Kb6 {[%clk 0:00:14]} 59. Nd5+ {[%clk 0:00:02]}  Kc6 {[%clk 0:00:13]} 60. Qxf4 {[%clk 0:00:02]}  e1=Q+ {[%clk 0:00:12]} 61. Kxe1 {[%clk 0:00:02]}  h1=Q+ {[%clk 0:00:13]} 62. Kf2 {[%clk 0:00:01]}  Qxd5 {[%clk 0:00:13]} 63. Qg5 {[%clk 0:00:01]}  Qa2+ {[%clk 0:00:11]} 0-1


[Site "https://www.chess.com"]

[Event "Titled Tuesday Blitz February 22 Late 2022"]
[White "Ezat, Mohamed"]
[Black "Muradli, Mahammad"]
[WhiteFideId "10600906"]
[BlackFideId "13409301"]
[WhiteElo "2386"]
[BlackElo "2645"]
[Result "1-0"]
[Round "04"]
[TimeControl "180+1"]
[Date "2022.02.22"]
[WhiteClock "0:00:33"]
[BlackClock "0:00:01"]

1. d4 {[%clk 0:03:00]}  d6 {[%clk 0:02:59]} 2. c4 {[%clk 0:03:01]}  g6 {[%clk 0:02:59]} 3. Nc3 {[%clk 0:03:01]}  Bg7 {[%clk 0:03:00]} 4. e4 {[%clk 0:03:02]}  c5 {[%clk 0:02:58]} 5. d5 {[%clk 0:03:01]}  Bxc3+ {[%clk 0:02:57]} 6. bxc3 {[%clk 0:03:00]}  e5 {[%clk 0:02:57]} 7. f4 {[%clk 0:02:58]}  Nd7 {[%clk 0:02:53]} 8. Nf3 {[%clk 0:02:58]}  f6 {[%clk 0:02:48]} 9. Be2 {[%clk 0:02:54]}  Qe7 {[%clk 0:02:47]} 10. O-O {[%clk 0:02:53]}  Kd8 {[%clk 0:02:43]} 11. fxe5 {[%clk 0:02:49]}  dxe5 {[%clk 0:02:33]} 12. d6 {[%clk 0:02:48]}  Qe6 {[%clk 0:02:28]} 13. a4 {[%clk 0:01:28]}  a5 {[%clk 0:02:24]} 14. Rb1 {[%clk 0:01:27]}  b6 {[%clk 0:02:24]} 15. Ng5 {[%clk 0:01:20]}  fxg5 {[%clk 0:02:01]} 16. Bg4 {[%clk 0:01:18]}  Qxc4 {[%clk 0:01:43]} 17. Bxg5+ {[%clk 0:01:17]}  Ke8 {[%clk 0:01:28]} 18. Rb2 {[%clk 0:01:11]}  h6 {[%clk 0:01:07]} 19. Rbf2 {[%clk 0:00:49]}  Rh7 {[%clk 0:00:36]} 20. Bh4 {[%clk 0:00:40]}  h5 {[%clk 0:00:26]} 21. Be2 {[%clk 0:00:35]}  Qe6 {[%clk 0:00:06]} 22. Bb5 {[%clk 0:00:34]}  Nf6 {[%clk 0:00:01]} 23. Rxf6 {[%clk 0:00:33]} 1-0


[Site "https://www.chess.com"]

[Event "Titled Tuesday Blitz February 22 Late 2022"]
[White "Fajdetic, Hrvoje"]
[Black "Vine, Elzbieta"]
[WhiteFideId "14501945"]
[BlackFideId "1119320"]
[WhiteElo "2140"]
[BlackElo "1874"]
[Result "1/2-1/2"]
[Round "04"]
[TimeControl "180+1"]
[Date "2022.02.23"]
[WhiteClock "0:01:02"]
[BlackClock "0:00:19"]

1. d4 {[%clk 0:02:55]}  d5 {[%clk 0:02:58]} 2. Bf4 {[%clk 0:02:52]}  Nf6 {[%clk 0:02:56]} 3. e3 {[%clk 0:02:53]}  Be6 {[%clk 0:02:50]} 4. Nf3 {[%clk 0:02:52]}  Nc6 {[%clk 0:02:43]} 5. Ng5 {[%clk 0:02:51]}  Bg4 {[%clk 0:02:38]} 6. f3 {[%clk 0:02:50]}  Bf5 {[%clk 0:02:35]} 7. g4 {[%clk 0:02:50]}  Bg6 {[%clk 0:02:29]} 8. h4 {[%clk 0:02:50]}  h6 {[%clk 0:02:29]} 9. Nh3 {[%clk 0:02:48]}  Qd7 {[%clk 0:02:26]} 10. h5 {[%clk 0:02:48]}  Bh7 {[%clk 0:02:25]} 11. Bd3 {[%clk 0:02:48]}  Bxd3 {[%clk 0:02:22]} 12. Qxd3 {[%clk 0:02:49]}  O-O-O {[%clk 0:02:18]} 13. Nc3 {[%clk 0:02:48]}  Nb4 {[%clk 0:02:15]} 14. Qd2 {[%clk 0:02:37]}  g5 {[%clk 0:02:08]} 15. Bg3 {[%clk 0:02:29]}  Bg7 {[%clk 0:02:05]} 16. a3 {[%clk 0:02:27]}  Nc6 {[%clk 0:02:03]} 17. Nb5 {[%clk 0:02:27]}  e5 {[%clk 0:01:55]} 18. dxe5 {[%clk 0:02:20]}  Ne8 {[%clk 0:01:20]} 19. O-O-O {[%clk 0:02:12]}  a6 {[%clk 0:01:08]} 20. Nd4 {[%clk 0:02:05]}  Nxe5 {[%clk 0:01:04]} 21. Rhf1 {[%clk 0:01:57]}  Nc4 {[%clk 0:01:02]} 22. Qd3 {[%clk 0:01:56]}  Ned6 {[%clk 0:00:57]} 23. Kb1 {[%clk 0:01:48]}  Rhe8 {[%clk 0:00:50]} 24. Rfe1 {[%clk 0:01:46]}  c5 {[%clk 0:00:47]} 25. Nb3 {[%clk 0:01:41]}  Nxb2 {[%clk 0:00:46]} 26. Qxd5 {[%clk 0:01:32]}  Nxd1 {[%clk 0:00:44]} 27. Rxd1 {[%clk 0:01:27]}  Nb5 {[%clk 0:00:33]} 28. Qxc5+ {[%clk 0:01:27]}  Qc6 {[%clk 0:00:33]} 29. Rxd8+ {[%clk 0:01:20]}  Rxd8 {[%clk 0:00:32]} 30. Qf5+ {[%clk 0:01:18]}  Qd7 {[%clk 0:00:30]} 31. Qc5+ {[%clk 0:01:14]}  Qc6 {[%clk 0:00:25]} 32. Qf5+ {[%clk 0:01:13]}  Qe6 {[%clk 0:00:23]} 33. Qc5+ {[%clk 0:01:02]}  Qc6 {[%clk 0:00:19]} 1/2-1/2


[Site "https://www.chess.com"]